fUST/lending_fUST_20250227
["ID","MTS","AMOUNT","RATE_DAILY","PERIOD"]
[354705863,1740633041350,-573.95,0.00046575,120]
[354705864,1740633041359,-1204.91,0.00046575,120]
[354705865,1740633041369,-1619.96,0.00046575,120]
[354705866,1740633041379,-715.72,0.00046575,120]
[354705867,1740633041388,-2096.92,0.00046575,120]
[354705868,1740633041397,-500.0,0.00046575,120]
[354705869,1740633041406,-500.0,0.00046575,120]
[354705870,1740633041417,-5152.46,0.00046575,120]
[354705871,1740633041428,-2122.24,0.00046575,120]
[354705872,1740633041437,-500.0,0.00046575,120]
[354705873,1740633041446,-1313.25,0.00046575,120]
[354705874,1740633041457,-500.0,0.00046575,120]
[354705875,1740633041466,-355.61901399,0.00046575,120]
[354705876,1740633041475,-500.0,0.00046575,120]
[354705877,1740633041636,-500.0,0.00046575,120]
[354705878,1740633041645,-3093.81,0.00046575,120]
[354705879,1740633041654,-740.46,0.00046575,120]
[354705880,1740633041664,-500.0,0.00046575,120]
[354705881,1740633041674,-1277.91,0.00046575,120]
[354705882,1740633041683,-691.83,0.00046575,120]
[354705883,1740633041692,-3182.07,0.00046575,120]
[354705884,1740633041701,-500.0,0.00046575,120]
[354705885,1740633041710,-500.0,0.00046575,120]
[354705886,1740633041720,-2293.76,0.00046575,120]
[354705887,1740633041729,-500.0,0.00046575,120]
[354705888,1740633041738,-500.0,0.00046575,120]
[354705889,1740633041747,-615.57,0.00046575,120]
[354705890,1740633041756,-500.0,0.00046575,120]
[354705891,1740633041766,-500.0,0.00046575,120]
[354705892,1740633041775,-500.0,0.00046575,120]
[354705893,1740633041784,-500.0,0.00046575,120]
[354705894,1740633041793,-879.03,0.00046575,120]
[354705895,1740633041803,-500.0,0.00046575,120]
[354705896,1740633041812,-685.97,0.00046575,120]
[354705897,1740633041822,-743.23,0.00046575,120]
[354705898,1740633041831,-500.0,0.00046575,21]
[354705899,1740633041841,-500.0,0.00046575,120]
[354705900,1740633041850,-1712.08,0.00046575,120]
[354705901,1740633041859,-7259.68,0.00046575,120]
[354705902,1740633041868,-500.0,0.00046575,120]
[354705903,1740633041879,-500.0,0.00046575,120]
[354705904,1740633041888,-500.0,0.00046575,120]
[354705905,1740633041898,-2534.57,0.00046575,120]
[354705906,1740633041907,-500.0,0.00046575,120]
[354705907,1740633041916,-500.0,0.00046575,120]
[354705908,1740633041925,-500.0,0.00046575,120]
[354705909,1740633041934,-859.79,0.00046575,120]
[354705910,1740633041943,-500.0,0.00046575,120]
[354705911,1740633041953,-500.0,0.00046575,120]
[354705912,1740633041963,-1578.69,0.00046575,120]
[354705913,1740633041972,-500.0,0.00046575,120]
[354705914,1740633041981,-736.17,0.00046575,120]
[354705915,1740633041990,-1529.88,0.00046575,120]
[354705916,1740633041999,-30226.35,0.00046575,120]
[354705917,1740633042008,-689.89,0.00046575,120]
[354705918,1740633042018,-500.0,0.00046575,120]
[354705919,1740633042027,-500.0,0.00046575,120]
[354705920,1740633042036,-726.64,0.00046575,120]
[354705921,1740633042045,-1244.34,0.00046575,120]
[354705922,1740633042055,-500.0,0.00046575,120]
[354705923,1740633042065,-500.0,0.00046575,120]
[354705924,1740633042074,-14460.76,0.00046575,120]
[354705925,1740633042083,-500.0,0.00046575,120]
[354705926,1740633042093,-716.25,0.00046575,120]
[354705927,1740633042102,-808.72,0.00046575,120]
[354705928,1740633042111,-2893.75,0.00046575,120]
[354705929,1740633042121,-197.24196433,0.00046575,120]
[354705930,1740633042130,-6225.92,0.00046575,120]
[354705931,1740633042139,-1178.15,0.00046575,120]
[354705932,1740633042149,-193.27442543,0.00046575,120]
[354705933,1740633042158,-500.0,0.00046575,120]
[354705934,1740633042167,-698.86,0.00046575,120]
[354705935,1740633042177,-500.0,0.00046575,120]
[354705936,1740633042186,-597.68,0.00046575,120]
[354705937,1740633042196,-22818.15,0.00046575,6]
[354705938,1740633042205,-6808.14,0.000466,30]
[354705939,1740633042214,-198.02,0.000466,30]
[354705940,1740633042223,-151.0,0.000466,110]
[354705941,1740633042233,-948.292621,0.000466,2]
[354705942,1740633042242,-948.292621,0.000466,2]
[354705943,1740633042261,-5000.0,0.000468,120]
[354705944,1740633042272,-160.09098932,0.00046848,120]
[354705945,1740633042283,-5176.42442098,0.00046849,5]
[354705946,1740633042293,-41395.57205909,0.00046849,33]
[354705947,1740633042303,-500.0,0.00046849,120]
[354705948,1740633042313,-899.41,0.00046849,120]
[354705949,1740633042323,-500.0,0.00046849,120]
[354705950,1740633042332,-500.0,0.00046849,120]
[354705951,1740633042342,-500.0,0.00046849,120]
[354705952,1740633042351,-500.0,0.00046849,120]
[354705953,1740633042361,-500.0,0.00046849,120]
[354705954,1740633042371,-505.1,0.00046849,120]
[354705955,1740633042381,-500.0,0.00046849,120]
[354705956,1740633042391,-500.0,0.00046849,120]
[354705957,1740633042401,-1156.21,0.00046849,120]
[354705958,1740633042411,-508.86,0.00046849,120]
[354705959,1740633042424,-500.0,0.00046849,120]
[354705960,1740633042434,-500.0,0.00046849,120]
[354705961,1740633042444,-523.68,0.00046849,120]
[354705962,1740633042455,-500.0,0.00046849,120]
[354705963,1740633042464,-1000.0,0.00046849,120]
[354705964,1740633042473,-500.0,0.00046849,120]
[354705965,1740633042483,-500.0,0.00046849,120]
[354705966,1740633042494,-500.0,0.00046849,120]
[354705967,1740633042504,-500.0,0.00046849,120]
[354705968,1740633042513,-500.0,0.00046849,120]
[354705969,1740633042523,-667.27,0.00046849,120]
[354705970,1740633042532,-529.2,0.00046849,120]
[354705971,1740633042542,-500.0,0.00046849,120]
[354705972,1740633042551,-500.0,0.00046849,120]
[354705973,1740633042561,-590.25,0.00046849,120]
[354705974,1740633042571,-500.0,0.00046849,120]
[354705975,1740633042580,-500.0,0.00046849,120]
[354705976,1740633042589,-500.0,0.00046849,120]
[354705977,1740633042599,-500.0,0.00046849,120]
[354705978,1740633042608,-500.0,0.00046849,120]
[354705979,1740633042618,-661.97,0.00046849,120]
[354705980,1740633042629,-632.29,0.00046849,120]
[354705981,1740633042639,-500.0,0.00046849,120]
[354705982,1740633042648,-614.83,0.00046849,120]
[354705983,1740633042658,-500.0,0.00046849,120]
[354705984,1740633042668,-500.0,0.00046849,120]
[354705985,1740633042678,-594.89,0.00046849,120]
[354705986,1740633042687,-534.99,0.00046849,120]
[354705987,1740633042697,-607.01,0.00046849,120]
[354705988,1740633042708,-2478.05,0.00046849,120]
[354705989,1740633042718,-946.66,0.00046849,120]
[354705990,1740633042728,-2490.76,0.00046849,120]
[354705991,1740633042738,-735.28,0.00046849,120]
[354705992,1740633042747,-1273.81,0.00046849,120]
[354705993,1740633042757,-500.0,0.00046849,120]
[354705994,1740633042766,-1506.71,0.00046849,120]
[354705995,1740633042776,-500.0,0.00046849,120]
[354705996,1740633042785,-500.0,0.00046849,120]
[354705997,1740633042795,-500.0,0.00046849,120]
[354705998,1740633042805,-2248.89,0.00046849,120]
[354705999,1740633042814,-500.0,0.00046849,120]
[354706000,1740633042824,-500.0,0.00046849,120]
[354706001,1740633042833,-500.0,0.00046849,120]
[354706002,1740633042842,-532.71,0.00046849,120]
[354706003,1740633042852,-500.0,0.00046849,120]
[354706004,1740633042861,-1343.72,0.00046849,120]
[354706005,1740633042871,-765.88,0.00046849,120]
[354706006,1740633042881,-1498.92,0.00046849,120]
[354706007,1740633042890,-500.0,0.00046849,120]
[354706008,1740633042900,-500.0,0.00046849,120]
[354706009,1740633042909,-200.0,0.00046849,7]
[354706010,1740633042918,-1234.81,0.00046849,120]
[354706011,1740633042928,-559.65,0.00046849,120]
[354706012,1740633042937,-677.93,0.00046849,120]
[354706013,1740633042947,-500.0,0.00046849,120]
[354706014,1740633042956,-1008.2,0.00046849,120]
[354706015,1740633042965,-500.0,0.00046849,120]
[354706016,1740633042974,-535.37,0.00046849,120]
[354706017,1740633042984,-500.0,0.00046849,120]
[354706018,1740633042994,-500.0,0.00046849,120]
[354706019,1740633043003,-528.3,0.00046849,120]
[354706020,1740633043013,-500.0,0.00046849,120]
[354706021,1740633043022,-500.0,0.00046849,120]
[354706022,1740633043031,-500.0,0.00046849,120]
[354706023,1740633043040,-500.0,0.00046849,120]
[354706024,1740633043049,-1980.39,0.00046849,120]
[354706026,1740633043059,-500.0,0.00046849,120]
[354706028,1740633043068,-2668.38,0.00046849,120]
[354706030,1740633043077,-1359.37,0.00046849,120]
[354706031,1740633043086,-1479.3,0.00046849,120]
[354706032,1740633043096,-500.0,0.00046849,120]
[354706033,1740633043105,-1168.95,0.00046849,120]
[354706034,1740633043115,-500.0,0.00046849,120]
[354706035,1740633043125,-544.09,0.00046849,120]
[354706036,1740633043134,-1381.08,0.00046849,120]
[354706037,1740633043143,-525.6,0.00046849,120]
[354706038,1740633043152,-500.0,0.00046849,120]
[354706039,1740633043161,-762.7,0.00046849,120]
[354706040,1740633043171,-706.14,0.00046849,120]
[354706041,1740633043180,-500.0,0.00046849,120]
[354706042,1740633043189,-500.0,0.00046849,120]
[354706043,1740633043199,-1009.79,0.00046849,120]
[354706044,1740633043208,-500.0,0.00046849,120]
[354706045,1740633043217,-500.0,0.00046849,120]
[354706046,1740633043226,-500.0,0.00046849,120]
[354706047,1740633043235,-1216.5,0.00046849,120]
[354706048,1740633043245,-1315.55,0.00046849,120]
[354706049,1740633043254,-1318.97,0.00046849,120]
[354706050,1740633043263,-687.21,0.00046849,120]
[354706051,1740633043272,-500.0,0.00046849,120]
[354706052,1740633043282,-500.0,0.00046849,120]
[354706053,1740633043291,-655.43,0.00046849,120]
[354706054,1740633043301,-500.0,0.00046849,120]
[354706055,1740633043310,-500.0,0.00046849,120]
[354706056,1740633043319,-657.12,0.00046849,120]
[354706057,1740633043332,-1127.89,0.00046849,120]
[354706058,1740633043343,-594.41,0.00046849,120]
[354706059,1740633043352,-1013.98,0.00046849,120]
[354706060,1740633043362,-2292.06,0.00046849,120]
[354706061,1740633043372,-726.38,0.00046849,120]
[354706062,1740633043381,-500.0,0.00046849,120]
[354706063,1740633043391,-545.34,0.00046849,120]
[354706064,1740633043401,-1734.3,0.00046849,120]
[354706065,1740633043414,-500.0,0.00046849,120]
[354706066,1740633043424,-500.0,0.00046849,120]
[354706067,1740633043434,-829.3,0.00046849,120]
[354706068,1740633043443,-1171.18,0.00046849,120]
[354706069,1740633043452,-2007.03,0.00046849,120]
[354706070,1740633043462,-592.64,0.00046849,120]
[354706071,1740633043471,-500.0,0.00046849,15]
[354706072,1740633043481,-725.62,0.00046849,120]
[354706073,1740633043491,-695.16,0.00046849,120]
[354706074,1740633043502,-500.0,0.00046849,120]
[354706075,1740633043511,-500.0,0.00046849,120]
[354706076,1740633043521,-500.0,0.00046849,120]
[354706077,1740633043531,-930.5,0.00046849,120]
[354706078,1740633043540,-500.0,0.00046849,120]
[354706079,1740633043550,-500.0,0.00046849,120]
[354706080,1740633043559,-500.0,0.00046849,120]
[354706081,1740633043569,-618.08,0.00046849,120]
[354706082,1740633043578,-500.0,0.00046849,120]
[354706083,1740633043587,-1066.42,0.00046849,120]
[354706084,1740633043597,-500.0,0.00046849,120]
[354706085,1740633043606,-526.02278521,0.00046849,120]
[354706086,1740633043616,-710.51,0.00046849,120]
[354706087,1740633043626,-249.465696,0.00046849,120]
[354706088,1740633043635,-500.0,0.00046849,120]
[354706089,1740633043644,-2385.0,0.00046849,120]
[354706090,1740633043654,-712.13,0.00046849,120]
[354706091,1740633043664,-500.0,0.00046849,120]
[354706092,1740633043674,-623.48,0.00046849,120]
[354706093,1740633043684,-1071.56,0.00046849,120]
[354706094,1740633043693,-500.0,0.00046849,120]
[354706095,1740633043703,-921.25,0.00046849,120]
[354706096,1740633043714,-588.56,0.00046849,120]
[354706097,1740633043723,-500.0,0.00046849,120]
[354706098,1740633043732,-500.0,0.00046849,120]
[354706099,1740633043741,-500.0,0.00046849,120]
[354706100,1740633043750,-500.0,0.00046849,120]
[354706101,1740633043760,-470.18637676,0.00046849,120]
[354706102,1740633043769,-500.0,0.00046849,120]
[354706103,1740633043778,-647.5,0.00046849,120]
[354706104,1740633043788,-590.36,0.00046849,120]
[354706105,1740633043797,-500.0,0.00046849,120]
[354706106,1740633043806,-9383.38,0.00046849,120]
[354706107,1740633043815,-660.25,0.00046849,120]
[354706108,1740633043825,-500.0,0.00046849,120]
[354706109,1740633043834,-586.5,0.00046849,120]
[354706110,1740633043843,-2346.11,0.00046849,120]
[354706111,1740633043852,-500.0,0.00046849,120]
[354706112,1740633043862,-500.0,0.00046849,120]
[354706113,1740633043872,-1654.66,0.00046849,120]
[354706114,1740633043883,-608.28,0.00046849,120]
[354706115,1740633043892,-500.0,0.00046849,120]
[354706116,1740633043902,-224.2709024,0.00046849,120]
[354706117,1740633043912,-500.0,0.00046849,120]
[354706118,1740633043921,-500.0,0.00046849,120]
[354706119,1740633043931,-2652.62,0.00046849,120]
[354706120,1740633043940,-662.86,0.00046849,120]
[354706121,1740633043950,-528.76,0.00046849,120]
[354706122,1740633043960,-681.66,0.00046849,120]
[354706123,1740633043969,-1106.82,0.00046849,120]
[354706124,1740633043979,-500.0,0.00046849,120]
[354706125,1740633043988,-1661.61,0.00046849,120]
[354706126,1740633043998,-500.0,0.00046849,120]
[354706127,1740633044007,-585.07,0.00046849,30]
[354706128,1740633044017,-1116.89,0.00046849,120]
[354706129,1740633044026,-3063.8,0.00046849,120]
[354706130,1740633044036,-500.0,0.00046849,120]
[354706131,1740633044045,-500.0,0.00046849,120]
[354706132,1740633044054,-1919.56,0.00046849,120]
[354706133,1740633044064,-500.0,0.00046849,120]
[354706134,1740633044073,-1218.47,0.00046849,120]
[354706135,1740633044082,-948.39,0.00046849,120]
[354706136,1740633044092,-1212.81,0.00046849,120]
[354706137,1740633044101,-7995.07,0.00046849,120]
[354706138,1740633044111,-26328.55,0.00046849,120]
[354706139,1740633044120,-3782.44,0.00046849,120]
[354706140,1740633044131,-539.67,0.00046849,120]
[354706141,1740633044140,-500.0,0.00046849,120]
[354706142,1740633044149,-9789.87,0.00046849,3]
[354706143,1740633044158,-2073.98,0.00046849,120]
[354706144,1740633044168,-500.0,0.00046849,120]
[354706145,1740633044177,-1128.82,0.00046849,120]
[354706146,1740633044186,-500.0,0.00046849,120]
[354706147,1740633044196,-500.0,0.00046849,120]
[354706148,1740633044205,-733.06,0.00046849,120]
[354706149,1740633044215,-4064.52,0.00046849,120]
[354706150,1740633044224,-1770.06,0.00046849,120]
[354706151,1740633044233,-5683.29,0.00046849,120]
[354706152,1740633044243,-500.0,0.00046849,120]
[354706153,1740633044252,-500.0,0.00046849,120]
[354706154,1740633044261,-500.0,0.00046849,120]
[354706155,1740633044271,-500.0,0.00046849,120]
[354706156,1740633044280,-521.21,0.00046849,120]
[354706157,1740633044290,-1347.84,0.00046849,120]
[354706158,1740633044299,-1000.0,0.00046849,2]
[354706159,1740633044309,-115917.67,0.00046849,7]
[354706160,1740633044318,-701.98,0.00046849,120]
[354706161,1740633044327,-573.95,0.00046849,120]
[354706162,1740633044337,-1204.91,0.00046849,120]
[354706163,1740633044346,-1619.96,0.00046849,120]
[354706164,1740633044355,-715.72,0.00046849,120]
[354706165,1740633044364,-2096.92,0.00046849,120]
[354706166,1740633044374,-500.0,0.00046849,120]
[354706167,1740633044383,-5152.46,0.00046849,120]
[354706168,1740633044392,-2122.24,0.00046849,120]
[354706169,1740633044402,-500.0,0.00046849,120]
[354706170,1740633044412,-1313.25,0.00046849,120]
[354706171,1740633044427,-500.0,0.00046849,120]
[354706172,1740633044436,-500.0,0.00046849,120]
[354706173,1740633044445,-500.0,0.00046849,120]
[354706174,1740633044455,-3093.81,0.00046849,120]
[354706175,1740633044465,-740.46,0.00046849,120]
[354706176,1740633044475,-500.0,0.00046849,120]
[354706177,1740633044485,-1277.91,0.00046849,120]
[354706178,1740633044495,-151.0,0.00046849,110]
[354706179,1740633044505,-691.83,0.00046849,120]
[354706180,1740633044515,-222.731738,0.00046849,110]
[354706181,1740633044524,-3182.07,0.00046849,120]
[354706182,1740633044535,-500.0,0.00046849,120]
[354706183,1740633044544,-556.36827987,0.00046849,120]
[354706184,1740633044553,-2293.76,0.00046849,120]
[354706185,1740633044562,-500.0,0.00046849,120]
[354706186,1740633044571,-615.57,0.00046849,120]
[354706187,1740633044581,-500.0,0.00046849,120]
[354706188,1740633044590,-181.54,0.00046849,120]
[354706189,1740633044599,-500.0,0.00046849,120]
[354706190,1740633044609,-879.03,0.00046849,120]
[354706191,1740633044618,-500.0,0.00046849,120]
[354706192,1740633044629,-685.97,0.00046849,120]
[354706193,1740633044638,-743.23,0.00046849,120]
[354706194,1740633044648,-500.0,0.00046849,21]
[354706195,1740633044658,-500.0,0.00046849,120]
[354706196,1740633044668,-948.292621,0.00046849,2]
[354706197,1740633044678,-948.292621,0.00046849,2]
[354706198,1740633044687,-1712.08,0.00046849,120]
[354706199,1740633044697,-948.292621,0.00046849,2]
[354706200,1740633044707,-7259.68,0.00046849,120]
[354706201,1740633044716,-948.292621,0.00046849,2]
[354706202,1740633044725,-948.292621,0.00046849,2]
[354706203,1740633044734,-948.292621,0.00046849,2]
[354706204,1740633044743,-421.44218709,0.00046849,120]
[354706205,1740633044753,-500.0,0.00046849,120]
[354706206,1740633044763,-2534.57,0.00046849,120]
[354706207,1740633044773,-500.0,0.00046849,120]
[354706208,1740633044783,-859.79,0.00046849,120]
[354706209,1740633044792,-500.0,0.00046849,120]
[354706210,1740633044801,-500.0,0.00046849,120]
[354706211,1740633044811,-1578.69,0.00046849,120]
[354706212,1740633044820,-500.0,0.00046849,120]
[354706213,1740633044829,-736.17,0.00046849,120]
[354706214,1740633044838,-1529.88,0.00046849,120]
[354706215,1740633044848,-30226.35,0.00046849,120]
[354706216,1740633044857,-689.89,0.00046849,120]
[354706217,1740633044866,-500.0,0.00046849,120]
[354706218,1740633044876,-500.0,0.00046849,120]
[354706219,1740633044885,-726.64,0.00046849,120]
[354706220,1740633044894,-1244.34,0.00046849,120]
[354706221,1740633044904,-500.0,0.00046849,120]
[354706222,1740633045076,-500.0,0.00046849,120]
[354706223,1740633045086,-14460.76,0.00046849,120]
[354706224,1740633045095,-500.0,0.00046849,120]
[354706225,1740633045104,-716.25,0.00046849,120]
[354706226,1740633045113,-808.72,0.00046849,120]
[354706227,1740633045123,-2893.75,0.00046849,120]
[354706228,1740633045133,-6225.92,0.00046849,120]
[354706229,1740633045143,-1178.15,0.00046849,120]
[354706230,1740633045152,-698.86,0.00046849,120]
[354706231,1740633045161,-597.68,0.00046849,120]
[354706232,1740633045170,-22818.15,0.00046849,6]
[354706233,1740633045179,-329.8559963,0.0004686,4]
[354706234,1740633045188,-200.0,0.00046873,10]
[354706235,1740633045197,-500.0,0.00046873,10]
[354706236,1740633045206,-500.0,0.00046873,10]
[354706237,1740633045215,-500.0,0.00046873,10]
[354706238,1740633045225,-500.0,0.00046873,10]
[354706239,1740633045234,-171.67261932,0.00046873,10]
[354706240,1740633045243,-500.0,0.00046873,10]
[354706241,1740633045253,-500.0,0.00046873,10]
[354706242,1740633045262,-500.0,0.00046873,10]
[354706243,1740633045271,-814.24,0.000469,30]
[354706244,1740633045280,-9000.0,0.00047,30]
[354706245,1740633045290,-400000.0,0.00047,120]
[354706246,1740633045299,-948.292621,0.00047,2]
[354706247,1740633045308,-948.292621,0.00047,2]
[354706248,1740633045318,-498.01549728,0.00047022,2]
[354706249,1740633045327,-6254.15922342,0.00047023,2]
[354706250,1740633045336,-3000.0,0.00047023,2]
[354706251,1740633045345,-162.250128,0.0004704,15]
[354706252,1740633045354,-500.0,0.00047095,2]
[354706253,1740633045363,-270.0,0.000471,120]
[354706254,1740633045374,-150.0,0.000471,120]
[354706255,1740633045383,-500.0,0.00047123,120]
[354706256,1740633045392,-899.41,0.00047123,120]
[354706257,1740633045402,-511.12707043,0.00047123,120]
[354706258,1740633045412,-500.0,0.00047123,120]
[354706259,1740633045424,-500.0,0.00047123,120]
[354706260,1740633045433,-500.0,0.00047123,120]
[354706261,1740633045443,-505.1,0.00047123,120]
[354706262,1740633045452,-500.0,0.00047123,120]
[354706263,1740633045462,-500.0,0.00047123,120]
[354706264,1740633045472,-1156.21,0.00047123,120]
[354706265,1740633045481,-508.86,0.00047123,120]
[354706266,1740633045490,-281.81376916,0.00047123,120]
[354706267,1740633045499,-491.76477719,0.00047123,120]
[354706268,1740633045508,-523.68,0.00047123,120]
[354706269,1740633045517,-500.0,0.00047123,120]
[354706270,1740633045526,-500.0,0.00047123,120]
[354706271,1740633045537,-500.0,0.00047123,120]
[354706272,1740633045547,-500.0,0.00047123,120]
[354706273,1740633045556,-500.0,0.00047123,120]
[354706274,1740633045565,-240.60198954,0.00047123,120]
[354706275,1740633045575,-667.27,0.00047123,120]
[354706276,1740633045584,-529.2,0.00047123,120]
[354706277,1740633045594,-600.5455124,0.00047123,120]
[354706278,1740633045603,-500.0,0.00047123,120]
[354706279,1740633045613,-590.25,0.00047123,120]
[354706280,1740633045622,-500.0,0.00047123,120]
[354706281,1740633045631,-191.07575465,0.00047123,120]
[354706282,1740633045641,-309.74829771,0.00047123,120]
[354706283,1740633045650,-500.0,0.00047123,120]
[354706284,1740633045659,-500.0,0.00047123,120]
[354706285,1740633045669,-661.97,0.00047123,120]
[354706286,1740633045679,-632.29,0.00047123,120]
[354706287,1740633045688,-500.0,0.00047123,120]
[354706288,1740633045697,-614.83,0.00047123,120]
[354706289,1740633045707,-500.0,0.00047123,120]
[354706290,1740633045716,-500.0,0.00047123,120]
[354706291,1740633045726,-594.89,0.00047123,120]
[354706292,1740633045736,-534.99,0.00047123,120]
[354706293,1740633045745,-607.01,0.00047123,120]
[354706294,1740633045754,-2478.05,0.00047123,120]
[354706295,1740633045763,-946.66,0.00047123,120]
[354706296,1740633045772,-2490.76,0.00047123,120]
[354706297,1740633045781,-735.28,0.00047123,120]
[354706298,1740633045791,-1273.81,0.00047123,120]
[354706299,1740633045800,-500.0,0.00047123,120]
[354706300,1740633045809,-1506.71,0.00047123,120]
[354706301,1740633045818,-500.0,0.00047123,120]
[354706302,1740633045827,-500.0,0.00047123,120]
[354706303,1740633045837,-500.0,0.00047123,120]
[354706304,1740633045846,-2248.89,0.00047123,120]
[354706305,1740633045855,-206.43441843,0.00047123,120]
[354706306,1740633045864,-500.0,0.00047123,120]
[354706307,1740633045875,-500.0,0.00047123,120]
[354706308,1740633045884,-532.71,0.00047123,120]
[354706309,1740633045893,-500.0,0.00047123,120]
[354706310,1740633045902,-1343.72,0.00047123,120]
[354706312,1740633045912,-765.88,0.00047123,120]
[354706314,1740633045921,-1498.92,0.00047123,120]
[354706315,1740633045930,-500.0,0.00047123,120]
[354706316,1740633045940,-500.0,0.00047123,120]
[354706317,1740633045950,-200.0,0.00047123,7]
[354706318,1740633045960,-1234.81,0.00047123,120]
[354706319,1740633045969,-559.65,0.00047123,120]
[354706320,1740633045978,-677.93,0.00047123,120]
[354706321,1740633045987,-500.0,0.00047123,120]
[354706322,1740633046005,-1008.2,0.00047123,120]
[354706323,1740633046018,-500.0,0.00047123,120]
[354706324,1740633046028,-535.37,0.00047123,120]
[354706325,1740633046038,-500.0,0.00047123,120]
[354706326,1740633046047,-500.0,0.00047123,120]
[354706327,1740633046057,-528.3,0.00047123,120]
[354706328,1740633046067,-500.0,0.00047123,120]
[354706329,1740633046077,-500.0,0.00047123,120]
[354706330,1740633046086,-500.0,0.00047123,120]
[354706331,1740633046096,-500.0,0.00047123,120]
[354706332,1740633046106,-1980.39,0.00047123,120]
[354706333,1740633046115,-500.0,0.00047123,120]
[354706334,1740633046125,-2668.38,0.00047123,120]
[354706335,1740633046135,-1359.37,0.00047123,120]
[354706336,1740633046144,-1479.3,0.00047123,120]
[354706337,1740633046154,-500.0,0.00047123,120]
[354706338,1740633046164,-1168.95,0.00047123,120]
[354706339,1740633046173,-500.0,0.00047123,120]
[354706340,1740633046183,-544.09,0.00047123,120]
[354706341,1740633046193,-1381.08,0.00047123,120]
[354706342,1740633046203,-525.6,0.00047123,120]
[354706343,1740633046212,-500.0,0.00047123,120]
[354706344,1740633046222,-762.7,0.00047123,120]
[354706345,1740633046232,-706.14,0.00047123,120]
[354706346,1740633046242,-500.0,0.00047123,120]
[354706347,1740633046251,-500.0,0.00047123,120]
[354706348,1740633046261,-1009.79,0.00047123,120]
[354706350,1740633046271,-500.0,0.00047123,120]
[354706352,1740633046281,-500.0,0.00047123,120]
[354706353,1740633046291,-500.0,0.00047123,120]
[354706354,1740633046300,-1216.5,0.00047123,120]
[354706355,1740633046310,-1315.55,0.00047123,120]
[354706356,1740633046319,-1318.97,0.00047123,120]
[354706357,1740633046329,-687.21,0.00047123,120]
[354706358,1740633046338,-500.0,0.00047123,120]
[354706359,1740633046348,-500.0,0.00047123,120]
[354706360,1740633046358,-655.43,0.00047123,120]
[354706361,1740633046367,-500.0,0.00047123,120]
[354706362,1740633046378,-500.0,0.00047123,120]
[354706363,1740633046387,-657.12,0.00047123,120]
[354706364,1740633046397,-1127.89,0.00047123,120]
[354706365,1740633046407,-594.41,0.00047123,120]
[354706366,1740633046419,-1013.98,0.00047123,120]
[354706367,1740633046428,-2292.06,0.00047123,120]
[354706368,1740633046438,-726.38,0.00047123,120]
[354706369,1740633046447,-500.0,0.00047123,120]